Cogmind - Beta 13 @@@ ROGUE MODE // 2024.05.05 @ 11:01:18 Player: Silfurdreki Result: Destroyed by L-31 Rogue with Katana Performance ------------- Evolutions (2) 1000 Regions Visited (4) 800 Robots Destroyed (54) 270 Value Destroyed (1429) 1429 Prototype IDs (3) 60 Alien Tech Used (0) 0 Bonus (33) 33 TOTAL SCORE: 3592 Bonus ------- Follower Combat Kills 33 Cogmind --------- Core Integrity 0/550 Matter 12/300 Energy 79/100 System Corruption 0% Temperature Cool (0) Movement Core (400) Ox7 Location -8/Materials Parts ------- > --- POWER (1) -------- (None) > --- PROPULSION (3) --- (None) > --- UTILITY (4) ------ Large Storage Unit Machine Analyzer Advanced Targeting Computer > --- WEAPON (3) ------- Ripper > --- INVENTORY (15) --- Nuclear Core Light Treads High-capacity Matter Pod (200) Trap Scanner Sensor Array Improved Signal Interpreter Heavy Armor Plating Long-range Tractor Beam Advanced EMP Blaster Peak State ------------ > --- POWER ------------ Heavy Ion Engine > --- PROPULSION ------- Light Treads Improved Treads Advanced Treads > --- UTILITY ---------- Large Storage Unit Machine Analyzer Advanced Targeting Computer Improved Medium Armor Plating > --- WEAPON ----------- Gauss Rifle Advanced Assault Cannon Gauss Cannon > --- INVENTORY -------- Nuclear Core Nuclear Core Light Treads High-capacity Matter Pod Trap Scanner Sensor Array Improved Signal Interpreter Heavy Armor Plating Hardened Medium Armor Plating Long-range Tractor Beam EM Pulse Cannon Flak Cannon Advanced EMP Blaster Ripper [Rating: 36] Favorites ----------- Power Heavy Ion Engine Engine Heavy Ion Engine Power Core Nuclear Core Propulsion Light Treads Treads Light Treads Utility Seismic Detector Device Seismic Detector Storage Large Storage Unit Processor Advanced Targeting Computer Protection Hardened Medium Armor Plating Weapon EM Pulse Cannon Energy Gun Small Laser Energy Cannon EM Pulse Cannon Ballistic Gun Heavy Assault Rifle Ballistic Cannon Advanced Assault Cannon Launcher Shock Bomb Launcher Slashing Weapon Ripper Build | -11 -10 -9 -9 -8 ------- Run | Yrd Mat Mat Min Mat Slots Evolved 4 | . . 2 . 2 Power . | . . . . . Propulsion 1 | . . 1 . . Utility 2 | . . 1 . 1 Weapon 1 | . . . . 1 Parts Attached 63 | 7 . 33 12 11 Power 5 | 1 . 3 . 1 Engine 3 | 1 . 2 . . Core 2 | . . 1 . 1 Reactor . | . . . . . Propulsion 12 | 2 . 5 3 2 Treads 12 | 2 . 5 3 2 Leg . | . . . . . Wheel . | . . . . . Hover . | . . . . . Flight . | . . . . . Utility 17 | 2 . 10 1 4 Device 6 | 1 . 4 . 1 Storage 2 | 1 . 1 . . Processor 2 | . . . . 2 Hackware . | . . . . . Protection 7 | . . 5 1 1 Artifact . | . . . . . Weapon 29 | 2 . 15 8 4 Energy Gun 2 | 1 . 1 . . Energy Cannon 8 | . . 5 2 1 Ballistic Gun 13 | 1 . 9 2 1 Ballistic Cannon 3 | . . . 2 1 Launcher 2 | . . . 2 . Special Weapon . | . . . . . Impact Weapon . | . . . . . Slashing Weapon 1 | . . . . 1 Piercing Weapon . | . . . . . Special Melee Weapon . | . . . . . Unidentified Prototypes 2 | . . 2 . . Parts Lost 12 | . . 1 . 11 Power 1 | . . . . 1 Propulsion 2 | . . . . 2 Utility 4 | . . 1 . 3 Weapon 5 | . . . . 5 Highest Loss Streak 10 | . . 1 . 10 To Critical Strikes . | . . . . . Average Slot Usage (%) 97 | . 100 96 99 93 Engine 9 | . 14 7 11 8 Core 1 | . . 3 . . Treads 29 | . 28 30 32 24 Device 10 | . 14 11 11 3 Storage 11 | . 14 11 11 9 Processor 2 | . . . . 14 Protection 8 | . . 9 11 8 Energy Gun 3 | . 14 5 . . Energy Cannon 5 | . . 4 11 . Ballistic Gun 8 | . 14 12 3 7 Ballistic Cannon 3 | . . . 2 16 Launcher 1 | . . . 3 . Naked Turns . | . . . . . Heaviest Build 53 | 12 12 43 49 53 Greatest Support 65 | 40 40 60 60 65 Greatest Overweight (x) 8 | 3 . . . 8 Average Overweight (x) . | . . . . . Largest Inventory Capacity 15 | 8 8 15 15 15 Average Capacity 11 | 7 8 9 15 15 Most Carried 15 | 2 6 13 15 15 Average Carried 10 | 1 3 8 13 14 Final Capacity 15 | 8 8 15 15 15 Final Carried 15 | 2 6 13 15 10 Class Distribution -------------------- 76% | Mutant 13% | Gunner 9% | Scavenger-Mutant Dominant Class ---------------- Mutant | -10/Materials Mutant | -9/Materials Mutant | -9/Mines Gunner | -8/Materials Resources | -11 -10 -9 -9 -8 ----------- Run | Yrd Mat Mat Min Mat Matter Collected 1100 | 217 98 470 226 89 Remotely . | . . . . . Salvage Created 1791 | 44 193 1077 287 190 Parts 128 | 4 7 87 21 9 Haulers Intercepted 1 | . . 1 . . Recyclers Shooed 3 | . 1 1 1 . Parts Field Recycled . | . . . . . Retrieved Matter . | . . . . . Parts Self-Destructed . | . . . . . Prevented . | . . . . . Kills | -11 -10 -9 -9 -8 ------- Run | Yrd Mat Mat Min Mat Combat Hostiles Destroyed 45 | . 2 25 12 6 Guns 28 | . 2 20 5 1 Cannons 9 | . . 3 1 5 AOE 8 | . . 2 6 . Classes Destroyed 10 | 1 3 4 1 1 Tunneler 2 | 2 . . . . Hauler 1 | . . 1 . . Recycler 3 | . 1 2 . . Operator 2 | . 1 1 . . Watcher 1 | . . 1 . . Swarmer 18 | . . 10 8 . Grunt 15 | . 2 9 2 2 Duelist 1 | . . . 1 . Sentry 10 | . . 6 1 3 Hunter 1 | . . . . 1 Best Kill Streak 4 | 2 2 4 4 3 Combat Bots Only 4 | . 1 4 4 3 Max Kills in Single Turn 3 | 1 1 3 3 1 Gunslinging 1 | . . 1 1 . Exploded 3 | . . 2 3 . Melee . | . . . . . Uniques/NPCs Destroyed . | . . . . . Combat | -11 -10 -9 -9 -8 -------- Run | Yrd Mat Mat Min Mat Hostile Shots Fired 310 | . 22 91 70 127 Missed 77 | . 8 31 16 22 Damage Taken 3858 | . 171 696 676 2315 Core 854 | . 29 142 120 563 Absorbed by Shields . | . . . . . Core Remaining (%) 74 | 100 88 . 34 . Volleys Fired 127 | 3 16 55 28 25 Largest 3 | 2 2 2 2 3 Hottest 126 | 60 60 126 96 124 Shots Fired 245 | 6 32 110 38 59 Gun 175 | 6 32 89 33 15 Cannon 67 | . . 21 2 44 Launcher 3 | . . . 3 . Special . | . . . . . Kinetic 160 | 3 16 50 35 56 Thermal 35 | 3 16 16 . . Explosive . | . . . . . Electromagnetic 50 | . . 44 3 3 Robot Hit Streak 21 | 5 5 21 11 8 Robot Miss Streak 4 | 1 3 3 2 4 Penetration Max 1 | . . . . 1 Secondary Targets 5 | . . 4 1 . Max Gunslinging Chain 1 | . . 1 1 . Shots Hit Robots 157 | 5 19 74 25 34 Core Hits 81 | 2 9 42 18 10 Critical Kills . | . . . . . Critical Parts Destroyed . | . . . . . Critical Strikes 3 | . . . . 3 Blast 3 | . . . . 3 Melee Attacks 1 | . . . . 1 Impact . | . . . . . Slashing 1 | . . . . 1 Piercing . | . . . . . Sneak Attacks . | . . . . . Combat Hostiles . | . . . . . Follow-up Attacks . | . . . . . Damage Inflicted 3667 | 63 247 1423 761 1173 Guns 1708 | 63 236 887 342 180 Cannons 952 | . . 326 25 601 Explosions 951 | . . 193 393 365 Melee 27 | . . . . 27 Ramming 29 | . 11 17 1 . Kinetic 1765 | 41 108 494 367 755 Thermal 1083 | 22 128 312 256 365 Explosive . | . . . . . Electromagnetic 763 | . . 600 137 26 Impact . | . . . . . Slashing 27 | . . . . 27 Piercing . | . . . . . Highest Corruption . | . . . . . Average Corruption . | . . . . . Corruption Purged . | . . . . . Corruption Blocked . | . . . . . Overload Shots . | . . . . . Overflow Damage 160 | . . 16 10 134 Projectiles 29 | . . 16 . 13 Explosions 131 | . . . 10 121 Melee . | . . . . . Knockbacks 4 | . . . . 4 Impact . | . . . . . Kinetic 3 | . . . . 3 Secondary 1 | . . . . 1 Self-Inflicted Damage 201 | . . 20 67 114 Shots 4 | . . 1 2 1 Rammed 9 | . 4 4 1 . Targets Rammed 9 | . 4 4 1 . Kicked . | . . . . . Crushed . | . . . . . Highest Temperature 543 | . 45 302 45 543 Average Temperature 136 | . 23 81 8 230 Received Heat Transfer 1167 | . 81 219 120 747 Effects 17 | . . . . 17 Shutdowns 2 | . . . . 2 Energy Bleed 4 | . . . . 4 Interference 7 | . . . . 7 Short Circuit 2 | . . . . 2 Damage (minor) 1 | . . . . 1 Damage (major) 1 | . . . . 1 Siege Activations . | . . . . . Robots Corrupted . | . . . . . Combat Hostiles . | . . . . . Parts Fried 2 | . . 2 . . Impact Corruptions . | . . . . . Robots Melted . | . . . . . Combat Hostiles . | . . . . . Parts Melted 1 | . . . 1 . Heat Transferred 1575 | 50 300 625 400 200 Parts Sabotaged . | . . . . . Parts Stolen . | . . . . . Parts Stripped . | . . . . . Power Chain Reactions 5 | . . 3 2 . Alert | -11 -10 -9 -9 -8 ------- Run | Yrd Mat Mat Min Mat Peak Influence 406 | 10 116 406 380 164 Initial 157 | . 6 18 157 27 Average 184 | 3 62 279 204 56 Maximum Alert Level 2 | . . 2 1 . Low Security (%) 54 | 100 100 18 49 100 Level 1 45 | . . 80 50 . Level 2 . | . . . . . Level 3 . | . . . . . Level 4 . | . . . . . Level 5 . | . . . . . High Security . | . . . . . Max Security . | . . . . . Squads Dispatched 6 | . 1 3 . 2 Investigation 2 | . . 1 . 1 Extermination . | . . . . . Reinforcement 4 | . 1 2 . 1 Assault . | . . . . . Garrison . | . . . . . Intercept . | . . . . . Searches Triggered . | . . . . . Construction Impeded . | . . . . . Haulers Reinforced . | . . . . . Active Scanning Responses . | . . . . . Cargo Convoy Interrupts . | . . . . . Stealth | -11 -10 -9 -9 -8 --------- Run | Yrd Mat Mat Min Mat Distress Signals 3 | . . 3 . . Communications Jammed . | . . . . . Distress Signals . | . . . . . Times Spotted 77 | . 15 36 11 15 Peak Tracking Total 8 | . 3 5 4 8 Tactical Retreats 2 | . 1 . . 1 Traps | -11 -10 -9 -9 -8 ------- Run | Yrd Mat Mat Min Mat Traps Triggered 3 | . . 2 1 . Indirectly . | . . . . . Trap Hack Attempts . | . . . . . Triggered . | . . . . . Disarmed . | . . . . . Reprogrammed 4 | . 4 . . . Reused . | . . . . . Traps Extracted . | . . . . . Installed . | . . . . . Triggered . | . . . . . Machines | -11 -10 -9 -9 -8 ---------- Run | Yrd Mat Mat Min Mat Machines Disabled 5 | . . 1 3 1 Max in Single Turn 3 | . . 1 3 1 Machines Repaired . | . . . . . Machines Dismantled . | . . . . . Machines Sabotaged . | . . . . . Overloaded Fab Kills . | . . . . . Hacking | -11 -10 -9 -9 -8 --------- Run | Yrd Mat Mat Min Mat Machines Accessed 15 | . 4 6 1 4 Terminals 10 | . 4 5 . 1 Fabricators . | . . . . . Repair Stations . | . . . . . Recycling Units 1 | . . . . 1 Scanalyzers 3 | . . 1 . 2 Garrison Access . | . . . . . Total Hacks 43 | . 12 16 1 14 Successful 28 | . 8 10 1 9 Failed 14 | . 3 6 . 5 Catastrophic 1 | . . . . 1 Database Lockouts 1 | . 1 . . . Manual 23 | . 10 10 . 3 Terminals 29 | . 12 14 . 3 Fabricators . | . . . . . Repair Stations . | . . . . . Recycling Units 1 | . . . . 1 Scanalyzers 12 | . . 2 . 10 Garrison Access . | . . . . . Terminal Hacks 14 | . 6 7 1 . Record 1 | . . 1 . . Robot Analysis 4 | . 2 2 . . Open Door 1 | . . . 1 . Branch Access Points 1 | . . 1 . . Terminal Index 1 | . . 1 . . Locate Traps 2 | . 1 1 . . Reprogram Traps 1 | . 1 . . . Registered Components 1 | . 1 . . . Zone Layout 2 | . 1 1 . . Fabricator Hacks . | . . . . . Repair Station Hacks . | . . . . . Recycling Unit Hacks 1 | . . . . 1 Report Inventory 1 | . . . . 1 Scanalyzer 8 | . . 1 . 7 Insert Component 5 | . . 1 . 4 Analyze 3 | . . . . 3 Garrison Access Hacks . | . . . . . Unauthorized Hacks 5 | . 2 2 . 1 Terminals 5 | . 2 2 . 1 Botnet 5 | . 2 2 . 1 Fabricators . | . . . . . Repair Stations . | . . . . . Recycling Units . | . . . . . Scanalyzers . | . . . . . Garrison Access . | . . . . . Data Cores Recovered . | . . . . . Used . | . . . . . Hacking Detections 13 | . 4 6 . 3 Full Trace Events 2 | . 1 . . 1 Feedback Events . | . . . . . Feedback Blocked . | . . . . . Robot Schematics Acquired . | . . . . . Robots Built . | . . . . . Authchips . | . . . . . Time . | . . . . . Total Robot Build Rating . | . . . . . Part Schematics Acquired 3 | . . . . 3 Parts Built . | . . . . . Authchips . | . . . . . Time . | . . . . . Total Part Build Rating . | . . . . . Parts Repaired . | . . . . . Time . | . . . . . Parts Recycled . | . . . . . Recycled Matter . | . . . . . Retrieved Matter . | . . . . . Retrieved Components . | . . . . . Parts Scanalyzed 4 | . . 1 . 3 Part Schematics Acquired 3 | . . . . 3 Parts Damaged 1 | . . . . 1 Bothacking | -11 -10 -9 -9 -8 ------------ Run | Yrd Mat Mat Min Mat Used RIF Installer . | . . . . . Robots Hacked . | . . . . . Non-combat . | . . . . . Combat . | . . . . . Robot Hacks Applied . | . . . . . Relay Couplers Released . | . . . . . Fabnet Peak Effective % . | . . . . . Robots Rewired . | . . . . . Allies Hacked . | . . . . . Hacks Repelled . | . . . . . Allies | -11 -10 -9 -9 -8 -------- Run | Yrd Mat Mat Min Mat Total Allies 2 | . . . 2 . Largest Group 2 | . . . 2 2 Highest-Rated Group 54 | . . . 54 54 Highest-Rated Ally 31 | . . . 31 31 Total Orders . | . . . . . Ally Attacks 12 | . . . 4 8 Total Damage 187 | . . . 83 104 Kills 1 | . . . 1 . Allies Corrupted . | . . . . . Allies Melted . | . . . . . Intel | -11 -10 -9 -9 -8 ------- Run | Yrd Mat Mat Min Mat Robot Analysis Total 4 | . 2 2 . . Derelict Logs Recovered 1 | . . . 1 . Drone Launches . | . . . . . Drone Recoveries . | . . . . . Exploration | -11 -10 -9 -9 -8 ------------- Run | Yrd Mat Mat Min Mat Turns Passed 4180 | 90 545 1420 1484 641 Spaces Moved 2156 | 46 265 663 856 326 Core 16 | 9 . . . 7 Treads 2140 | 37 265 663 856 319 Legs . | . . . . . Wheels . | . . . . . Hover . | . . . . . Flight . | . . . . . Fastest Speed 50 | 50 160 160 160 152 Average Speed 160 | 151 160 160 160 161 Slowest Speed 450 | 200 160 160 160 450 Overloaded Moves . | . . . . . Propulsion Burnouts . | . . . . . Robots Hopped . | . . . . . Cave-ins Triggered . | . . . . . Exploration Rate (%) 49 | 5 45 63 99 33 Regions Visited 4 Branch Regions 1 Pre-discovered Areas 1 | . . . 1 . Known Exits Taken 1 | . . 1 . . Unknown Exits Taken 3 | 1 1 . 1 . Scrap Searched 1 | . . . 1 . Spaces Dug 11 | . . . 4 7 Terrain Destroyed 74 | . . 7 24 43 Melee . | . . . . . Projectile 18 | . . . 1 17 AOE 56 | . . 7 23 26 Terrain Rammed . | . . . . . Walls Destroyed . | . . . . . Machines Disabled . | . . . . . Actions | -11 -10 -9 -9 -8 --------- Run | Yrd Mat Mat Min Mat Total 2648 | 57 352 914 930 395 Wait 207 | . 64 104 21 18 Move 2152 | 45 264 662 855 326 Hop . | . . . . . Pick Up 46 | 2 4 26 7 7 Fast Attach 13 | 7 . 6 . . Attach 11 | . . 1 2 8 Detach . | . . . . . Swap 39 | . . 26 10 3 Drop 43 | . . 30 6 7 Fire 127 | 3 16 55 28 25 Melee 1 | . . . . 1 Ram . | . . . . . Kick . | . . . . . Crush 9 | . 4 4 1 . Escape Stasis . | . . . . . Rewire . | . . . . . Trap . | . . . . . Miscellaneous . | . . . . . Route ------- -11/Scrapyard -10/Materials (discovered 2 exits: *Mat x2) -9/Materials (discovered 3 exits: *Mat x2 / *Min) -9/Mines (discovered 2 exits: *Mat x2) -8/Materials History --------- Turn | Location | Event 12 | -11/Scrapyard | Discovered new exit (range 16) 91 | -11/Scrapyard | Entered Materials 302 | -10/Materials | Build established: Mutant 346 | -10/Materials | Discovered new exit (range 8) 386 | -10/Materials | Central database locked down 592 | -10/Materials | Discovered new exit (range 10) 636 | -10/Materials | Entered another Materials area 636 | -9/Materials | Evolved 2 slots: Propulsion x1, Utility x1 1140 | -9/Materials | Discovered new exit (range 16) 1462 | -9/Materials | Discovered new exit (range 16) 1617 | -9/Materials | Identified exit to Mines 1970 | -9/Materials | Build established: Scavenger-Mutant 2056 | -9/Materials | Entered Mines 2162 | -9/Mines | Core integrity fell below 50% 2330 | -9/Mines | A weapon hastily lodged in a ceiling crevice suddenly fell to the ground 2346 | -9/Mines | Learned location of Zion (-7) 2365 | -9/Mines | Build established: Mutant 2397 | -9/Mines | Found a hidden stash of uninstalled traps 2506 | -9/Mines | Discovered new exit (range 8) 2577 | -9/Mines | Discovered new exit (range 16) 3338 | -9/Mines | Met a Derelict who couldn't figure out how to use a Trap Extractor 3540 | -9/Mines | Entered Materials 3540 | -8/Materials | Accompanied by 2 allies 3540 | -8/Materials | Evolved 2 slots: Utility x1, Weapon x1 3545 | -8/Materials | Led the pair of lost Derelicts to an unsafe place 3617 | -8/Materials | Lost 3 allies 3836 | -8/Materials | Build established: Gunner 4150 | -8/Materials | Core integrity fell below 50% 4173 | -8/Materials | Core integrity fell below 20% 4181 | -8/Materials | Destroyed by L-31 Rogue with Katana Last Messages --------------- 04139_ Knocked back. 04143_ Overheating: Broken Adv. Targeting Computer damaged (-5). 04144_ Adv. Assault Cannon broken. 04144_ Overheating: Short circuit. 04144_ Broken Adv. Assault Cannon destroyed. 04146_ Acquired 3 matter. 04146_ Critical hit (Burn: +37). 04150_ Acquired 12 matter. 04154_ Overheating: Energy bleed (-11). 04154_ Penetrated by Slug. 04155_ G-47 Trooper knocked back. 04157_ Acquired 6 matter. 04161_ Knocked back. 04162_ Flak Cannon destroyed. 04166_ Slug penetrates Wall. 04172_ Penetrated by Slug. 04174_ Acquired 1 matter. 04177_ Penetrated by Slug. 04178_ L-31 Rogue suffers critical hit (Burn). 04180_ Penetrated by Slug. Map ----- +----------------------------------------------------+ | | | | | | | | | ?????????????????????????????????????????? | | ?????????????????????????????????????????? | | ?????????????????????????????????????????? | | ?????????????????????????????????????????? | | ?????????????????????????????????????????? | | ?????????????????????????????????????????? | | ?????????????????????????????????????????? | | ????????????##???????????????????????????? | | ????????? ? ??????"""??????????????????? | | ?????????#"##+###???"""??????????????????? | | ???? ????# #???"""??????????????????? | | ????? ???# #?????????##?????????????? | | ?????? ??#* #?????????# ####??######## | | ??????? ?# %!!!%#???????####"# #### = # | | ???????? # !!! ????????#! ![# # # | | ?????????+ !! ####????# = # # "" !# | | ??????????# #"""""""###?#"" [+ + S"" # | | ??????????#" " " " * #?#"Y # # "" # | | ?????????## ###"" !! # # # | | ?????????#;;;%; "" "## !! # ######## | | ????????##;] % ; ########## # # | | ????????# ; Ha; %gg @ h + # = # | | ????????##; % %% ;#lr # # # | | ?????????#; % ; ;;g # # " # | | ?????????## " ########## # """# | | ??????????# [" #????????# # """# | | ??????????###""""""+"########### +] """# | | ?????????? # "" # | | ??????????## # """# | | ???????????#+#+############ ###### ""# | | ????T?????????????????????# #????# """# | | ????????????????########### #????# " # | | ???????????????# """ """ ## #????# ] # | | ???????????????# """ """ ## ##???######## | | "?"""??????????# """ """ # #??????????? | | "?"""??????????# + #####??????? | | "?"""??????????# # !!#??????? | | ??????????######! # !!#??????? | | ??????????? # ## ## ==#??????? | | ??????????? # ## ## ==#??????? | | ??????????? #########+## ## //#??????? | | ???????????# # ## ## //#??????? | | ???????????# # ## ######??????? | | ?########### # ## #???????????? | | # ## #???????????? | | # ## ##??????????? | +----------------------------------------------------+ Best States ------------- Heat Dissipation 42 Energy Generation 14 Energy Capacity 280 Matter Stores 300 Matter Capacity 300 Sight Range 16 Robot Scan Range 14 Terrain Scan Density 10 Armor Coverage 225 Evasion (%) 40 Targeting Accuracy 8 Recoil Reduction 3 Item Schematics ----------------- Adv. EMP Blaster | -8/Materials | Scanalyzed Hvy. Armor Plating | -8/Materials | Scanalyzed Lrn. Tractor Beam | -8/Materials | Scanalyzed Robot Schematics ------------------ None Fabricated ------------ Nothing Alien Tech Used ----------------- None Achievements -------------- None Challenges ------------ None Game ------ Seed HeartDecoderLaser Manual? 0 Play Time 00:34:14 Cumulative 23.3 hours Start 2024.05.05 @ 10:26:46 End 2024.05.05 @ 11:01:18 Sessions 1 Manual Loads 0 Difficulty Rogue Special Mode None Game No. 39 Rogue 39 Adventurer 0 Explorer 0 Win Type - Total 0 Types 0/0/0/0/0/0/0/0/0 Lore% 31 Gallery% 30 Achievement% 25 Wizard Run 0 Options --------- Layout 0 ASCII 0 Keyboard 0 Movement Numpad Keybinds 0 Fullscreen 1 Font 18/SmallcapsGlow Map View 76x50 Zoom Use 0% Tactical HUD 1 Map Filters NONE Filters NONE Steam 1 RUN: 7d3e6f14-7afa-412d-b01d-c8467daf97e4